Cogmind - Beta 11 X8 @@@ ROGUE MODE // 2021.12.04 @ 20:12:56 Player: biogoob Result: Destroyed by Y-64 Sentinel with Wave Gun Performance ------------- Evolutions (5) 2500 Regions Visited (12) 2400 Robots Destroyed (115) 575 Value Destroyed (3618) 3618 Prototype IDs (6) 120 Alien Tech Used (0) 0 Bonus (874) 874 TOTAL SCORE: 10087 Bonus ------- High Alert Combat Kills 174 Entered Garrisons 200 Used RIF Installer 500 Cogmind --------- Core Integrity 0/1000 Matter 152/300 Energy 82/100 System Corruption 4% Temperature Cool (9) Movement Core (50) Location -5/Upper Caves Parts ------- > --- POWER (1) -------- (None) > --- PROPULSION (4) --- (None) > --- UTILITY (9) ------ Improved Cooling System Improved Terrain Scan Processor > --- WEAPON (3) ------- (None) > --- INVENTORY (5) ---- Combat Airjet Antigrav System Improved Medium Armor Plating Chainsword Fire Trap Peak State ------------ > --- POWER ------------ Light Angular Momentum Engine > --- PROPULSION ------- Cooled Nuclear Pulse Thruster Cooled Nuclear Pulse Thruster Cooled Nuclear Pulse Thruster Cooled Nuclear Pulse Thruster > --- UTILITY ---------- Medium Storage Unit Improved Sensor Array Improved Signal Interpreter Weapon Cycler Improved Medium Armor Plating Layered Light Armor Plating Makeshift Armor Plating > --- WEAPON ----------- Enhanced Gauss Cannon Axe Chainsword > --- INVENTORY -------- Improved Medium Treads Armored Huge Wheel Improved Hover Unit Combat Airjet Improved Cooling System Advanced Visual Processing Unit Microactuators Heavy Laser [Rating: 72] Favorites ----------- Power Improved Ion Engine Engine Improved Ion Engine Power Core Micro Nuclear Core Propulsion Armored Wheel Treads Light Treads Leg Aluminum Leg Wheel Armored Wheel Hover Unit Cooled Airjet Flight Unit Cooled Nuclear Pulse Thruster Utility High-capacity Storage Unit Device Heat Sink Storage High-capacity Storage Unit Processor Improved Signal Interpreter Protection Light Armor Plating Weapon Advanced Beam Rifle Energy Gun Advanced Beam Rifle Ballistic Gun High-powered Shotgun Ballistic Cannon Enhanced Gauss Cannon Launcher Improved Grenade Launcher Slashing Weapon Greatsword Build | -11 -10 -10 -9 -8 -8 -8 -7 -7 -7 -6 -5 -5 ------- Run | Scr Mat Min Mat Mat Gar Mat Fac Low Low Fac Fac Upp Slots Evolved 10 | . . . 2 2 . . 2 . . 2 2 . Power . | . . . . . . . . . . . . . Propulsion 2 | . . . 1 1 . . . . . . . . Utility 7 | . . . 1 . . . 2 . . 2 2 . Weapon 1 | . . . . 1 . . . . . . . . Parts Attached 137 | . 9 6 25 7 1 19 23 3 . 15 26 3 Power 15 | . 2 2 2 2 . 2 1 . . 1 3 . Engine 13 | . 2 2 2 1 . 2 . . . 1 3 . Core 2 | . . . . 1 . . 1 . . . . . Reactor . | . . . . . . . . . . . . . Propulsion 49 | . 3 3 10 2 . 7 8 . . 3 13 . Treads 20 | . 1 . 8 1 . 5 2 . . 2 1 . Leg . | . . . . . . . . . . . . . Wheel 14 | . 2 3 2 1 . 2 2 . . 1 1 . Hover 7 | . . . . . . . 4 . . . 3 . Flight 8 | . . . . . . . . . . . 8 . Utility 39 | . 3 1 3 2 . 4 9 2 . 8 4 3 Device 19 | . 1 1 2 1 . 2 5 . . 3 2 2 Storage 3 | . 1 . . . . 1 1 . . . . . Processor 4 | . . . . . . 1 1 . . . 1 1 Hackware . | . . . . . . . . . . . . . Protection 13 | . 1 . 1 1 . . 2 2 . 5 1 . Artifact . | . . . . . . . . . . . . . Weapon 34 | . 1 . 10 1 1 6 5 1 . 3 6 . Energy Gun 15 | . 1 . 8 . . 3 1 . . 1 1 . Energy Cannon . | . . . . . . . . . . . . . Ballistic Gun 4 | . . . . 1 . 2 1 . . . . . Ballistic Cannon 2 | . . . . . . . . . . . 2 . Launcher 8 | . . . 2 . 1 1 2 . . 2 . . Special Weapon . | . . . . . . . . . . . . . Impact Weapon . | . . . . . . . . . . . . . Slashing Weapon 5 | . . . . . . . 1 1 . . 3 . Piercing Weapon . | . . . . . . . . . . . . . Special Melee Weapon . | . . . . . . . . . . . . . Unidentified Prototypes 4 | . . . 1 . . 1 1 . . . 1 . Corrupted Parts 1 | . . . 1 . . . . . . . . . System Corruption 4 | . . . 4 . . . . . . . . . Parts Lost 16 | . . 2 1 1 . 3 . . . 3 5 1 Power 2 | . . 1 . . . . . . . . 1 . Propulsion 6 | . . 1 1 . . 2 . . . . 2 . Utility 5 | . . . . 1 . . . . . 1 2 1 Weapon 3 | . . . . . . 1 . . . 2 . . Highest Loss Streak 3 | . . 2 1 1 . 2 . . . 2 3 1 Average Slot Usage (%) 93 | . 99 99 99 99 100 99 96 92 92 73 69 9 Engine 8 | . 14 13 11 6 9 9 5 . . . 4 . Treads 12 | . 12 5 21 18 18 17 8 . . 4 3 . Wheel 11 | . 12 21 11 18 18 17 7 . . 4 3 . Hover 4 | . . . . . . . 13 30 30 9 1 . Device 10 | . 7 8 16 9 9 9 12 7 7 6 8 4 Storage 9 | . 14 14 11 9 9 9 7 7 7 6 4 . Processor 4 | . . . . . . 6 13 7 7 6 6 4 Protection 5 | . 5 5 4 8 9 2 4 15 15 12 12 . Energy Gun 17 | . 28 28 22 18 18 17 12 2 . 4 3 . Ballistic Gun 2 | . . . . 9 3 8 4 . . . . . Slashing Weapon 1 | . . . . . . . 2 12 15 7 5 . Naked Turns 69 | . . . . . . . . . . . 28 41 Heaviest Build 70 | 11 53 53 55 67 70 70 65 35 31 42 52 2 Greatest Support 43 | 20 20 26 40 43 24 43 36 36 36 36 28 3 Greatest Overweight (x) 8 | . 5 5 5 2 2 2 2 . . 1 8 . Average Overweight (x) 1 | . 4 2 4 1 2 1 . . . . . . Largest Inventory Capacity 20 | . 20 20 20 20 20 20 20 10 10 10 10 5 Average Capacity 17 | . 18 20 20 20 20 20 15 10 10 10 9 5 Most Carried 20 | . 20 20 20 20 20 20 20 10 10 10 10 5 Average Carried 16 | . 13 19 19 19 20 19 15 9 10 8 6 4 Final Capacity 20 | 8 20 20 20 20 20 20 10 10 10 10 5 5 Final Carried 20 | 6 17 20 20 20 20 20 10 10 10 7 4 5 Class Distribution -------------------- 53% | Mutant 12% | Scavenger-Mutant 12% | Gunner 9% | Skirmisher 8% | Tank Dominant Class ---------------- Mutant | -10/Materials Mutant | -10/Mines Mutant | -9/Materials Tank | -8/Materials Mutant | -8/Garrison Gunner | -8/Materials Skirmisher | -7/Factory Mutant | -7/Lower Caves Mutant | -7/Lower Caves Mutant | -6/Factory Mutant | -5/Factory Mutant | -5/Upper Caves Resources | -11 -10 -10 -9 -8 -8 -8 -7 -7 -7 -6 -5 -5 ----------- Run | Scr Mat Min Mat Mat Gar Mat Fac Low Low Fac Fac Upp Matter Collected 2138 | 200 80 70 270 215 21 528 263 73 . 84 280 54 Remotely . | . . . . . . . . . . . . . Salvage Created 4014 | . 182 82 992 799 134 895 385 . . 84 461 . Parts 249 | . 11 8 70 41 7 65 29 . . 2 16 . Haulers Intercepted 5 | . . . . 1 . 3 1 . . . . . Recyclers Shooed 1 | . . . . . . . 1 . . . . . Parts Field Recycled . | . . . . . . . . . . . . . Retrieved Matter . | . . . . . . . . . . . . . Parts Self-Destructed . | . . . . . . . . . . . . . Prevented . | . . . . . . . . . . . . . Kills | -11 -10 -10 -9 -8 -8 -8 -7 -7 -7 -6 -5 -5 ------- Run | Scr Mat Min Mat Mat Gar Mat Fac Low Low Fac Fac Upp Combat Hostiles Destroyed 94 | . 6 4 24 17 7 20 11 . . 2 3 . Melee 3 | . . . . . . . 2 . . . 1 . Guns 66 | . 6 4 20 16 1 15 2 . . 1 1 . Cannons 1 | . . . . . . . . . . . 1 . AOE 23 | . . . 4 . 6 5 7 . . 1 . . Classes Destroyed 15 | . 3 1 3 3 . 3 1 . . . 1 . Worker 4 | . . . . . . 1 3 . . . . . Builder 2 | . . . . . . 1 1 . . . . . Tunneler 3 | . 1 2 . . . . . . . . . . Hauler 5 | . . . . 1 . 3 1 . . . . . Recycler 2 | . . . . . . . . . . . 2 . Operator 1 | . . . . . . 1 . . . . . . Watcher 4 | . . . 1 . . 3 . . . . . . Swarmer 30 | . 3 3 3 4 4 6 7 . . . . . Grunt 28 | . 3 . 9 8 2 4 1 . . 1 . . Brawler 5 | . . . 2 2 . 1 . . . . . . Duelist 2 | . . . . 1 . . . . . 1 . . Sentry 21 | . . . 10 1 . 7 2 . . . 1 . Demolisher 1 | . . 1 . . . . . . . . . . Hunter 4 | . . . . 1 1 2 . . . . . . Programmer 3 | . . . . . . . 1 . . . 2 . Best Kill Streak 8 | . 4 3 3 5 7 8 5 . . 2 2 . Combat Bots Only 7 | . 4 3 3 5 7 6 4 . . 2 2 . Max Kills in Single Turn 4 | . 1 1 2 2 2 3 4 . . 1 1 . Gunslinging 1 | . . . . . . 1 . . . . . . Exploded 3 | . . . 2 . 2 2 3 . . 1 . . Melee 1 | . . . . . . . 1 . . . 1 . Uniques/NPCs Destroyed . | . . . . . . . . . . . . . Combat | -11 -10 -10 -9 -8 -8 -8 -7 -7 -7 -6 -5 -5 -------- Run | Scr Mat Min Mat Mat Gar Mat Fac Low Low Fac Fac Upp Damage Taken 6131 | . 201 374 505 605 107 1113 698 48 . 709 1002 769 Core 1795 | . 37 154 141 71 14 223 70 . . 68 303 714 Absorbed by Shields . | . . . . . . . . . . . . . Core Remaining (%) 68 | 100 . 23 64 . . 44 . . 90 92 . . Volleys Fired 209 | . 15 14 50 37 9 52 11 . . 5 16 . Largest 3 | . 2 2 2 3 2 3 3 . . 2 2 . Hottest 185 | . 90 90 122 145 122 185 185 . . 105 126 . Shots Fired 471 | . 29 28 97 109 13 132 23 . . 8 32 . Gun 429 | . 29 28 94 109 8 121 19 . . 5 16 . Cannon 16 | . . . . . . . . . . . 16 . Launcher 26 | . . . 3 . 5 11 4 . . 3 . . Special . | . . . . . . . . . . . . . Kinetic 96 | . . . . 35 . 39 6 . . . 16 . Thermal 349 | . 29 28 94 74 8 82 13 . . 5 16 . Explosive 26 | . . . 3 . 5 11 4 . . 3 . . Electromagnetic . | . . . . . . . . . . . . . Robot Hit Streak 17 | . 9 11 17 9 8 13 11 . . 8 9 . Robot Miss Streak 6 | . 3 6 5 3 1 3 1 . . 1 2 . Penetration Max . | . . . . . . . . . . . . . Secondary Targets 5 | . . 1 . 2 . 2 . . . . . . Max Gunslinging Chain 1 | . . 1 . 1 . 1 . . . . . . Shots Hit Robots 327 | . 18 14 64 68 11 91 26 . . 7 28 . Core Hits 185 | . 11 7 35 30 10 49 26 . . 6 11 . Critical Kills . | . . . . . . . . . . . . . Critical Parts Destroyed 1 | . . . . . . 1 . . . . . . Critical Strikes 17 | . 1 1 7 5 1 1 . . . . 1 . Burn 15 | . 1 1 7 5 1 . . . . . . . Destroy 1 | . . . . . . 1 . . . . . . Blast 1 | . . . . . . . . . . . 1 . Melee Attacks 32 | . . . . . . . 21 . 3 3 5 . Impact . | . . . . . . . . . . . . . Slashing 32 | . . . . . . . 21 . 3 3 5 . Piercing . | . . . . . . . . . . . . . Sneak Attacks 4 | . . . . . . . 2 . . . 2 . Combat Hostiles . | . . . . . . . . . . . . . Follow-up Attacks . | . . . . . . . . . . . . . Damage Inflicted 8725 | . 225 166 1304 1282 552 2261 1742 . . 269 920 4 Guns 5064 | . 225 166 975 1282 140 1597 334 . . 75 270 . Cannons 329 | . . . . . . . . . . . 329 . Explosions 2261 | . . . 329 . 412 664 691 . . 165 . . Melee 1066 | . . . . . . . 717 . . 29 320 . Ramming 5 | . . . . . . . . . . . 1 4 Kinetic 1194 | . . . . 292 . 471 102 . . . 329 . Thermal 4199 | . 225 166 975 990 140 1126 232 . . 75 270 . Explosive 2261 | . . . 329 . 412 664 691 . . 165 . . Electromagnetic . | . . . . . . . . . . . . . Impact . | . . . . . . . . . . . . . Slashing 1066 | . . . . . . . 717 . . 29 320 . Piercing . | . . . . . . . . . . . . . Highest Corruption 5 | . 2 2 5 . . . 2 2 2 . 4 4 Average Corruption 1 | . 2 2 1 . . . 1 2 2 . 3 4 Corruption Purged . | . . . . . . . . . . . . . Effects 30 | . 2 6 3 . . . 2 3 2 . 1 11 Message Errors 9 | . 1 . 1 . . . . 2 . . 1 4 Matter Fused 4 | . . . . . . . . . . . . 4 Heat Flow Errors 3 | . . 2 . . . . . . . . . 1 Energy Discharges 3 | . . 3 . . . . . . . . . . Data Loss (minor) 10 | . . 1 2 . . . 2 1 2 . . 2 Weapon Failures 1 | . 1 . . . . . . . . . . . Overload Shots . | . . . . . . . . . . . . . Overflow Damage 95 | . . . . . 2 . 89 . . 4 . . Projectiles . | . . . . . . . . . . . . . Explosions 18 | . . . . . 2 . 16 . . . . . Melee 77 | . . . . . . . 73 . . 4 . . Knockbacks 4 | . . . . . . . . . . . 4 . Impact . | . . . . . . . . . . . . . Kinetic 3 | . . . . . . . . . . . 3 . Secondary 1 | . . . . . . . . . . . 1 . Self-Inflicted Damage 151 | . . . . . 7 73 35 . . 35 . 1 Shots 6 | . . . . . 1 3 1 . . 1 . . Rammed 3 | . . . . . . . . . . . 1 2 Targets Rammed 3 | . . . . . . . . . . . 1 2 Kicked . | . . . . . . . . . . . . . Crushed . | . . . . . . . . . . . . . Highest Temperature 363 | . 147 351 117 306 240 363 70 . . 173 309 117 Average Temperature 90 | . 67 105 31 122 123 106 30 . . 69 153 83 Received Heat Transfer 1501 | . 87 . 192 216 . 243 129 . . 256 54 324 Effects 7 | . . . . 4 . 2 . . . . 1 . Shutdowns 1 | . . . . . . 1 . . . . . . Energy Bleed 1 | . . . . 1 . . . . . . . . Interference 5 | . . . . 3 . 1 . . . . 1 . Siege Activations . | . . . . . . . . . . . . . Robots Corrupted . | . . . . . . . . . . . . . Combat Hostiles . | . . . . . . . . . . . . . Parts Fried . | . . . . . . . . . . . . . Impact Corruptions . | . . . . . . . . . . . . . Robots Melted 1 | . . . . 1 . . . . . . . . Combat Hostiles 1 | . . . . 1 . . . . . . . . Parts Melted 24 | . 2 . 7 5 3 3 3 . . 1 . . Heat Transferred 9933 | . 681 532 2703 2183 333 2410 499 . . 148 444 . Parts Sabotaged . | . . . . . . . . . . . . . Parts Stolen . | . . . . . . . . . . . . . Parts Stripped . | . . . . . . . . . . . . . Power Chain Reactions . | . . . . . . . . . . . . . Missiles Intercepted . | . . . . . . . . . . . . . Alert | -11 -10 -10 -9 -8 -8 -8 -7 -7 -7 -6 -5 -5 ------- Run | Scr Mat Min Mat Mat Gar Mat Fac Low Low Fac Fac Upp Peak Influence 736 | . 215 90 477 357 395 736 414 . . 170 197 . Initial 334 | . . 5 . 83 232 192 334 . . 133 78 . Average 231 | . 76 23 170 160 317 523 303 . . 154 126 . Maximum Alert Level 3 | . 1 . 2 1 1 3 2 . . . . . Low Security (%) 56 | . 94 100 69 63 . 1 24 . . 100 100 . Level 1 27 | . 5 . 28 36 100 17 68 . . . . . Level 2 14 | . . . 2 . . 68 6 . . . . . Level 3 2 | . . . . . . 12 . . . . . . Level 4 . | . . . . . . . . . . . . . Level 5 . | . . . . . . . . . . . . . High Security . | . . . . . . . . . . . . . Max Security . | . . . . . . . . . . . . . Squads Dispatched 15 | . 1 . . 4 . . 7 . . . 3 . Investigation 2 | . . . . . . . 2 . . . . . Extermination 2 | . . . . . . . 1 . . . 1 . Reinforcement 9 | . 1 . . 2 . . 4 . . . 2 . Assault . | . . . . . . . . . . . . . Garrison 2 | . . . . 2 . . . . . . . . Intercept . | . . . . . . . . . . . . . Construction Impeded 1 | . . . . . . . 1 . . . . . Haulers Reinforced . | . . . . . . . . . . . . . Active Scanning Responses . | . . . . . . . . . . . . . Cargo Convoy Interrupts . | . . . . . . . . . . . . . Stealth | -11 -10 -10 -9 -8 -8 -8 -7 -7 -7 -6 -5 -5 --------- Run | Scr Mat Min Mat Mat Gar Mat Fac Low Low Fac Fac Upp Distress Signals 11 | . 1 . 3 3 . 3 1 . . . . . Communications Jammed . | . . . . . . . . . . . . . Distress Signals . | . . . . . . . . . . . . . Times Spotted 200 | . 17 6 37 25 8 39 22 1 3 7 8 27 Peak Tracking Total 14 | . 5 2 5 5 3 9 5 1 4 4 3 14 Tactical Retreats 20 | . 2 . 2 1 . 3 2 1 . . . 9 Traps | -11 -10 -10 -9 -8 -8 -8 -7 -7 -7 -6 -5 -5 ------- Run | Scr Mat Min Mat Mat Gar Mat Fac Low Low Fac Fac Upp Traps Triggered 17 | . 3 1 1 . 5 . 2 . . 5 . . Indirectly . | . . . . . . . . . . . . . Trap Hack Attempts . | . . . . . . . . . . . . . Triggered . | . . . . . . . . . . . . . Disarmed . | . . . . . . . . . . . . . Reprogrammed . | . . . . . . . . . . . . . Reused . | . . . . . . . . . . . . . Traps Extracted . | . . . . . . . . . . . . . Installed . | . . . . . . . . . . . . . Triggered . | . . . . . . . . . . . . . Machines | -11 -10 -10 -9 -8 -8 -8 -7 -7 -7 -6 -5 -5 ---------- Run | Scr Mat Min Mat Mat Gar Mat Fac Low Low Fac Fac Upp Machines Disabled 9 | . . . 1 . . 6 1 . . . 1 . Max in Single Turn 1 | . . . . . . 1 1 . . . 1 . Garrison Access 4 | . . . . . . 1 3 . . . . . Machines Sabotaged . | . . . . . . . . . . . . . Garrisons Compromised . | . . . . . . . . . . . . . Overloaded Fab Kills . | . . . . . . . . . . . . . Hacking | -11 -10 -10 -9 -8 -8 -8 -7 -7 -7 -6 -5 -5 --------- Run | Scr Mat Min Mat Mat Gar Mat Fac Low Low Fac Fac Upp Machines Accessed 39 | . 4 1 12 5 . 6 8 2 . 1 . . Terminals 21 | . 3 . 9 3 . 4 2 . . . . . Fabricators 1 | . . . . . . . 1 . . . . . Repair Stations 1 | . . . . . . . 1 . . . . . Recycling Units 6 | . 1 . 1 1 . 1 1 . . 1 . . Scanalyzers 2 | . . . 2 . . . . . . . . . Garrison Access 5 | . . . . 1 . 1 3 . . . . . Total Hacks 87 | . 10 1 34 12 . 13 14 2 . 1 . . Successful 53 | . 5 1 20 9 . 9 7 2 . . . . Failed 33 | . 5 . 13 3 . 4 7 . . 1 . . Catastrophic 1 | . . . . 1 . . . . . . . . Database Lockouts 1 | . . . 1 . . . . . . . . . Manual 33 | . 7 . 14 3 . 7 2 . . . . . Terminals 60 | . 7 . 27 10 . 10 6 . . . . . Fabricators 1 | . . . . . . . 1 . . . . . Repair Stations 2 | . . . . . . . 2 . . . . . Recycling Units 10 | . 3 . 1 1 . 2 2 . . 1 . . Scanalyzers 6 | . . . 6 . . . . . . . . . Garrison Access 5 | . . . . 1 . 1 3 . . . . . Terminal Hacks 19 | . 1 1 8 5 . 2 . 2 . . . . Robot Analysis 2 | . 1 . 1 . . . . . . . . . Prototype ID Bank 1 | . . . 1 . . . . . . . . . Open Door 3 | . . 1 . . . . . 2 . . . . Level Access Points 1 | . . . 1 . . . . . . . . . Branch Access Points 1 | . . . . . . 1 . . . . . . Unreport Threat 1 | . . . 1 . . . . . . . . . Locate Traps 2 | . . . . 2 . . . . . . . . Dispatch Records 2 | . . . 2 . . . . . . . . . Maintenance Status 2 | . . . 1 1 . . . . . . . . Investigation Status 1 | . . . 1 . . . . . . . . . Hauler Manifests 1 | . . . . 1 . . . . . . . . Zone Layout 2 | . . . . 1 . 1 . . . . . . Fabricator Hacks . | . . . . . . . . . . . . . Repair Station Hacks 2 | . . . . . . . 2 . . . . . Scan Component 1 | . . . . . . . 1 . . . . . Repair 1 | . . . . . . . 1 . . . . . Recycling Unit Hacks 7 | . 2 . 1 1 . 2 1 . . . . . Report Inventory 5 | . 1 . 1 1 . 1 1 . . . . . Retrieve Components 2 | . 1 . . . . 1 . . . . . . Scanalyzer 6 | . . . 6 . . . . . . . . . Insert Component 5 | . . . 5 . . . . . . . . . Analyze 1 | . . . 1 . . . . . . . . . Garrison Access Hacks 5 | . . . . 1 . 1 3 . . . . . Unlock Access 1 | . . . . 1 . . . . . . . . Seal Access 4 | . . . . . . 1 3 . . . . . Unauthorized Hacks 14 | . 2 . 5 2 . 4 1 . . . . . Terminals 14 | . 2 . 5 2 . 4 1 . . . . . Track 2 | . 1 . . . . 1 . . . . . . Botnet 12 | . 1 . 5 2 . 3 1 . . . . . Fabricators . | . . . . . . . . . . . . . Repair Stations . | . . . . . . . . . . . . . Recycling Units . | . . . . . . . . . . . . . Scanalyzers . | . . . . . . . . . . . . . Garrison Access . | . . . . . . . . . . . . . Data Cores Recovered . | . . . . . . . . . . . . . Used . | . . . . . . . . . . . . . Hacking Detections 28 | . 4 . 10 5 . 5 3 . . 1 . . Full Trace Events 1 | . . . . . . . 1 . . . . . Feedback Events . | . . . . . . . . . . . . . Feedback Blocked . | . . . . . . . . . . . . . Robot Schematics Acquired . | . . . . . . . . . . . . . Robots Built . | . . . . . . . . . . . . . Authchips . | . . . . . . . . . . . . . Time . | . . . . . . . . . . . . . Total Robot Build Rating . | . . . . . . . . . . . . . Part Schematics Acquired 1 | . . . 1 . . . . . . . . . Parts Built . | . . . . . . . . . . . . . Authchips . | . . . . . . . . . . . . . Time . | . . . . . . . . . . . . . Total Part Build Rating . | . . . . . . . . . . . . . Parts Repaired 1 | . . . . . . . 1 . . . . . Time 32 | . . . . . . . 32 . . . . . Parts Recycled . | . . . . . . . . . . . . . Recycled Matter . | . . . . . . . . . . . . . Retrieved Matter . | . . . . . . . . . . . . . Retrieved Components 9 | . 2 . . . . 7 . . . . . . Parts Scanalyzed 1 | . . . 1 . . . . . . . . . Part Schematics Acquired 1 | . . . 1 . . . . . . . . . Parts Damaged . | . . . . . . . . . . . . . Bothacking | -11 -10 -10 -9 -8 -8 -8 -7 -7 -7 -6 -5 -5 ------------ Run | Scr Mat Min Mat Mat Gar Mat Fac Low Low Fac Fac Upp Used RIF Installer 1 | . . . . . 1 . . . . . . . Robots Hacked . | . . . . . . . . . . . . . Non-combat . | . . . . . . . . . . . . . Combat . | . . . . . . . . . . . . . Robot Hacks Applied . | . . . . . . . . . . . . . Relay Couplers Released . | . . . . . . . . . . . . . Fabnet Peak Effective % . | . . . . . . . . . . . . . Robots Rewired . | . . . . . . . . . . . . . Allies Hacked . | . . . . . . . . . . . . . Hacks Repelled . | . . . . . . . . . . . . . Allies | -11 -10 -10 -9 -8 -8 -8 -7 -7 -7 -6 -5 -5 -------- Run | Scr Mat Min Mat Mat Gar Mat Fac Low Low Fac Fac Upp Total Allies 3 | . . 3 . . . . . . . . . . Largest Group 3 | . . 3 1 . . . . . . . . . Highest-Rated Group 40 | . . 40 16 . . . . . . . . . Highest-Rated Ally 16 | . . 16 16 . . . . . . . . . Total Orders . | . . . . . . . . . . . . . Ally Attacks 11 | . . 7 4 . . . . . . . . . Total Damage 68 | . . 54 14 . . . . . . . . . Kills 1 | . . 1 . . . . . . . . . . Allies Corrupted . | . . . . . . . . . . . . . Allies Melted . | . . . . . . . . . . . . . Intel | -11 -10 -10 -9 -8 -8 -8 -7 -7 -7 -6 -5 -5 ------- Run | Scr Mat Min Mat Mat Gar Mat Fac Low Low Fac Fac Upp Robot Analysis Total 2 | . 1 . 1 . . . . . . . . . Derelict Logs Recovered 5 | . . 1 . . . . . 2 1 . . 1 Drone Launches . | . . . . . . . . . . . . . Drone Recoveries . | . . . . . . . . . . . . . Exploration | -11 -10 -10 -9 -8 -8 -8 -7 -7 -7 -6 -5 -5 ------------- Run | Scr Mat Min Mat Mat Gar Mat Fac Low Low Fac Fac Upp Turns Passed 9171 | . 837 848 2330 588 187 1511 1312 332 281 261 370 314 Spaces Moved 7393 | 1 514 601 1328 325 103 876 1446 649 456 245 237 612 Core 666 | . . . . . . . . . . . 54 612 Treads 173 | . . . 55 27 . 89 1 . . 1 . . Legs 47 | 1 46 . . . . . . . . . . . Wheels 4372 | . 468 601 1273 298 103 787 533 . . 147 162 . Hover 2114 | . . . . . . . 912 649 456 97 . . Flight 21 | . . . . . . . . . . . 21 . Fastest Speed 26 | 120 120 105 105 120 120 120 50 50 50 50 26 50 Average Speed 103 | 120 145 118 152 130 120 136 77 50 50 89 101 50 Slowest Speed 625 | 120 260 155 320 245 120 320 320 50 50 240 625 50 Overloaded Moves . | . . . . . . . . . . . . . Propulsion Burnouts . | . . . . . . . . . . . . . Robots Hopped 1 | . . . . . . . . 1 . . . . Cave-ins Triggered . | . . . . . . . . . . . . . Exploration Rate (%) 50 | 1 79 95 95 25 33 69 44 82 45 7 7 79 Regions Visited 12 Branch Regions 4 Pre-discovered Areas 4 | . . 2 . . . . . 2 . . . . Known Exits Taken 6 | . . . 1 1 . . 1 1 1 1 . . Unknown Exits Taken 5 | 1 1 1 . . . 1 . . . . 1 . Scrap Searched 12 | . . 1 . . . . . 7 1 . . 3 Spaces Dug 18 | . . . . . . 8 6 . 3 1 . . Terrain Destroyed 166 | . . . 19 . 14 80 27 . 3 16 7 . Melee 10 | . . . . . . . 6 . 3 1 . . Projectile 9 | . . . . . . 2 . . . . 7 . AOE 147 | . . . 19 . 14 78 21 . . 15 . . Terrain Rammed . | . . . . . . . . . . . . . Walls Destroyed . | . . . . . . . . . . . . . Machines Disabled . | . . . . . . . . . . . . . Actions | -11 -10 -10 -9 -8 -8 -8 -7 -7 -7 -6 -5 -5 --------- Run | Scr Mat Min Mat Mat Gar Mat Fac Low Low Fac Fac Upp Total 8493 | . 578 714 1561 424 154 1095 1590 655 503 274 327 618 Wait 460 | . 11 77 105 28 1 118 49 1 45 . 25 . Move 7378 | . 513 600 1327 324 101 875 1445 646 455 244 236 612 Hop 1 | . . . . . . . . 1 . . . . Pick Up 92 | . 18 9 19 14 1 11 14 1 . 3 1 1 Fast Attach 36 | . 4 1 4 2 . 3 3 . . 8 8 3 Attach 32 | . . 2 1 3 . 3 6 . . 5 12 . Detach 16 | . 1 . . . . 1 1 . . . 13 . Swap 69 | . 5 3 20 2 1 13 14 3 . 2 6 . Drop 117 | . 11 8 35 14 1 19 18 3 . 4 4 . Fire 209 | . 15 14 50 37 9 52 11 . . 5 16 . Melee 32 | . . . . . . . 21 . 3 3 5 . Ram 3 | . . . . . . . . . . . 1 2 Kick . | . . . . . . . . . . . . . Crush . | . . . . . . . . . . . . . Escape Stasis 48 | . . . . . 40 . 8 . . . . . Rewire . | . . . . . . . . . . . . . Trap . | . . . . . . . . . . . . . Miscellaneous . | . . . . . . . . . . . . . Route ------- -11/Scrapyard -10/Materials (discovered 5 exits: *Mat x3 / *Min x2) -10/Mines (discovered 2 exits: *Mat x2) -9/Materials (discovered 3 exits: *Mat x3) -8/Materials -8/Garrison -8/Materials (discovered 3 exits: *Fac x2 / *Sto) -7/Factory (discovered 3 exits: *Fac / *Low x2) -7/Lower Caves -7/Lower Caves -6/Factory -5/Factory -5/Upper Caves History --------- Turn | Location | Event 1 | -11/Scrapyard | Discovered new exit (range 0) 1 | -11/Scrapyard | Entered Materials 195 | -10/Materials | Discovered new exit (range 3) 253 | -10/Materials | Discovered new exit (range 15) 311 | -10/Materials | Build established: Mutant 438 | -10/Materials | Discovered new exit (range 4) 743 | -10/Materials | Discovered new exit (range 16) 819 | -10/Materials | Discovered new exit (range 6) 838 | -10/Materials | Entered Mines 853 | -10/Mines | Assembled infested the area 984 | -10/Mines | Discovered new exit (range 4) 1192 | -10/Mines | Core integrity fell below 50% 1260 | -10/Mines | Discovered new exit (range 5) 1373 | -10/Mines | Assisted by bots powering up and referring to "LRC-V3" 1379 | -10/Mines | Received a Rocket Launcher from a helpful Derelict 1463 | -10/Mines | Learned location of Storage (-8) 1581 | -10/Mines | Met a Derelict who couldn't figure out how to use a Trap Extractor 1686 | -10/Mines | Entered Materials 1686 | -9/Materials | Accompanied by 1 ally 1686 | -9/Materials | Evolved 2 slots: Propulsion x1, Utility x1 2017 | -9/Materials | Build established: Scavenger-Mutant 2447 | -9/Materials | Discovered new exit (range 10) 2845 | -9/Materials | Discovered new exit (range 15) 3166 | -9/Materials | Build established: Mutant 3213 | -9/Materials | Central database locked down 3874 | -9/Materials | Discovered new exit (range 9) 3895 | -9/Materials | Identified exit to Materials 4016 | -9/Materials | Entered another Materials area 4016 | -8/Materials | Evolved 2 slots: Propulsion x1, Weapon x1 4309 | -8/Materials | Build established: Tank 4471 | -8/Materials | Garrison activated, responded to threat 4580 | -8/Materials | Identified exit to Garrison 4604 | -8/Materials | Entered Garrison 4693 | -8/Garrison | Triggered checkpoint 4726 | -8/Garrison | Destroyed 7 combat bots 4760 | -8/Garrison | Discovered new exit (range 10) 4785 | -8/Garrison | Installed Relay Interface Framework 4791 | -8/Garrison | Entered Materials 4862 | -8/Materials | Build established: Mutant 5051 | -8/Materials | Discovered new exit (range 14) 5396 | -8/Materials | Discovered new exit (range 16) 5471 | -8/Materials | Build established: Gunner 5796 | -8/Materials | Core integrity fell below 50% 5822 | -8/Materials | Discovered new exit (range 16) 6059 | -8/Materials | Identified exit to Storage 6302 | -8/Materials | Entered Factory 6302 | -7/Factory | Evolved 2 slots: Utility x2 6589 | -7/Factory | Discovered new exit (range 9) 6600 | -7/Factory | Build established: Skirmisher 6604 | -7/Factory | Identified exit to Lower Caves 6911 | -7/Factory | Repaired Arm. Wheel 7049 | -7/Factory | Discovered new exit (range 13) 7068 | -7/Factory | Identified exit to Factory 7600 | -7/Factory | Discovered exit to Lower Caves (range 14) 7614 | -7/Factory | Entered Lower Caves 7669 | -7/Lower Caves | Spotted B-75 Beast 7783 | -7/Lower Caves | Build established: Mutant 7843 | -7/Lower Caves | Discovered new exit (range 7) 7846 | -7/Lower Caves | Identified exit to Lower Caves 7853 | -7/Lower Caves | Learned location of Extension (-5) 7946 | -7/Lower Caves | Entered another Lower Caves area 7951 | -7/Lower Caves | Learned Factory stockpile data 7978 | -7/Lower Caves | Encountered a Warlord checkpoint 8218 | -7/Lower Caves | Discovered exit to Factory (range 9) 8227 | -7/Lower Caves | Entered Factory 8227 | -6/Factory | Evolved 2 slots: Utility x2 8462 | -6/Factory | Discovered new exit (range 15) 8478 | -6/Factory | Identified exit to Factory 8488 | -6/Factory | Entered another Factory area 8488 | -5/Factory | Evolved 2 slots: Utility x2 8820 | -5/Factory | Lost 3 parts (1p2n) 8830 | -5/Factory | Released all parts (13) 8850 | -5/Factory | Discovered new exit (range 15) 8858 | -5/Factory | Entered Upper Caves 8882 | -5/Upper Caves | Learned 12 Factory zone layouts 9025 | -5/Upper Caves | Core integrity fell below 50% 9036 | -5/Upper Caves | Core integrity fell below 20% 9039 | -5/Upper Caves | Attracted the attention of an 0b10 outpost 9172 | -5/Upper Caves | Destroyed by Y-64 Sentinel with Wave Gun Last Messages --------------- 09025_ Slammed into G-50 Soldier. 09033_ 6 >2W0Q%NSOL0L|#P%#PHP& 09039_ Y-72 Warden: "DETECTED UNIDENTIFIED DERELICT." 09043_ Y-72 Warden: "REQUESTING BACKUP." 09054_ GBINLMW2,J|CLKIRKE